bitfinex-derivatives/quotes_ETHF0:USTF0_20250614
["timestamp","ask_amount","ask_price","bid_price","bid_amount"]
[1749921651771,0.00597467,2511.2,2511.1,2.1138]
[1749921651970,0.00597467,2511.2,2511.1,2.4517352]
[1749921652273,0.00597467,2511.2,2511.1,4.02990574]
[1749921652471,0.00597467,2511.2,2511.1,4.02990565]
[1749921652664,0.00597467,2511.2,2511.1,4.02990683]
[1749921653068,0.00597467,2511.2,2511.1,7.2377038]
[1749921653266,0.00597467,2511.2,2511.1,7.23770363]
[1749921653771,6.761,2511.6,2511.5,0.79598]
[1749921654073,0.79598,2511.6,2511.5,0.79597]
[1749921654273,0.796,2511.5,2511.4,0.79599]
[1749921654474,0.796,2511.5,2511.4,1.2541]
[1749921654671,3.2078,2511.7,2511.4,1.2541]
[1749921654672,0.79595,2511.6,2511.4,1.2541]
[1749921654871,0.79598,2511.5,2511.4,1.2541]
[1749921655068,0.79598,2511.5,2511.4,2.05011]
[1749921656976,0.79598,2511.5,2511.4,2.72561]
[1749921657973,0.79598,2511.5,2511.4,2.72558]
[1749921658175,3.2078,2511.7,2511.4,1.9296]
[1749921658574,0.79598,2511.5,2511.4,2.72558]
[1749921659074,0.79597,2511.6,2511.5,0.79598]
[1749921659275,0.79597,2511.6,2511.5,2.07968]
[1749921660178,0.79597,2511.6,2511.5,1.2837]
[1749921661281,0.79598,2511.5,2511.4,0.6755]
[1749921663190,2.05728,2511.5,2511.4,0.6755]
[1749921663582,0.79604,2511.3,2511.2,0.67347467]
[1749921663781,0.79604,2511.3,2511.2,1.30447467]
[1749921670399,2.13434,2511.3,2511.2,0.63697467]
[1749921670788,0.79604,2511.3,2511.2,0.63697467]
[1749921675397,0.79604,2511.3,2511.2,1.82759742]
[1749921675899,0.79604,2511.3,2511.2,0.63697467]
[1749921676797,0.79604,2511.3,2511.2,1.82759742]
[1749921677097,0.79604,2511.3,2511.2,0.63697467]
[1749921677298,0.79604,2511.3,2511.2,1.82759742]
[1749921677688,0.79604,2511.3,2511.2,1.82905092]
[1749921678092,0.79604,2511.3,2511.2,0.63697467]
[1749921678293,0.79604,2511.3,2511.2,1.82905092]
[1749921680698,0.06809268,2511.3,2511.2,3.01121593]
[1749921680889,0.06809268,2511.3,2511.2,5.10076454]
[1749921681192,0.06809268,2511.3,2511.2,5.43985623]
[1749921681393,0.06809268,2511.3,2511.2,3.07893732]
[1749921681598,0.06809268,2511.3,2511.2,3.07893842]
[1749921681799,0.06809268,2511.3,2511.2,9.83696771]
[1749921682002,0.06809268,2511.3,2511.2,9.49784467]
[1749921682195,0.06809268,2511.3,2511.2,12.22304444]
[1749921682397,0.06809268,2511.3,2511.2,12.22304579]
[1749921682598,0.06809268,2511.3,2511.2,11.88392003]
[1749921682799,0.06809268,2511.3,2511.2,12.22304581]
[1749921682998,0.06809268,2511.3,2511.2,11.88392003]
[1749921683200,0.86413268,2511.3,2511.2,5.46504391]
[1749921683494,0.06809268,2511.3,2511.2,5.46504428]
[1749921683696,0.06809268,2511.3,2511.2,3.07896892]
[1749921683900,0.00597467,2511.8,2511.7,0.79591]
[1749921684097,5.828,2512.3,2512.2,0.79576]
[1749921684297,0.79572,2512.3,2512.2,1.53051876]
[1749921684500,0.79576,2512.2,2512.1,1.58861868]
[1749921684696,0.79576,2512.2,2512.1,0.6708]
[1749921685097,0.79576,2512.2,2512.1,1.86228015]
[1749921686199,0.79576,2512.2,2512.1,0.6708]
[1749921686697,0.80169467,2512.4,2512.1,0.6708]
[1749921686901,0.80169467,2512.4,2512.2,1.18988285]
[1749921687103,0.80169467,2512.4,2512.3,1.3495]
[1749921687309,0.00597467,2512.4,2512.3,2.14522]
[1749921688207,0.80166467,2512.4,2512.3,2.14522]
[1749921688398,0.00597467,2512.4,2512.3,2.14522]
[1749921688602,0.00597467,2512.4,2512.3,3.33510285]
[1749921690804,0.80166467,2512.4,2512.3,2.53938285]
[1749921691308,0.80166467,2512.4,2512.3,1.3495]
[1749921691809,0.00597467,2512.4,2512.3,2.14522]
[1749921693011,0.00597467,2512.4,2512.3,3.33510285]
[1749921693199,4.0034,2512.8,2512.7,0.7956]
[1749921693705,0.79555,2512.9,2512.8,0.79554]
[1749921694007,4.0033,2513.1,2513.0,0.7955]
[1749921694303,3.2078,2513.1,2513.0,0.7955]
[1749921694508,3.2078,2513.1,2513.0,7.5505]
[1749921694707,0.89159467,2513.3,2513.2,0.79544]
[1749921695011,0.09616467,2513.3,2513.2,0.79544]
[1749921695202,0.09616467,2513.3,2513.2,5.79544]
[1749921695516,3.2078,2513.4,2513.3,0.79541]
[1749921695808,6.755,2514.0,2513.7,0.79527]
[1749921695809,3.2078,2513.8,2513.7,0.79527]
[1749921696103,4.00307,2513.8,2513.7,0.79527]
[1749921696702,3.2078,2513.8,2513.7,0.79527]
[1749921697209,0.79528,2513.7,2513.6,2.18259]
[1749921697408,3.2078,2513.8,2513.6,1.3873]
[1749921697606,0.79528,2513.7,2513.6,2.1826]
[1749921698107,0.79527,2513.8,2513.7,0.79528]
[1749921698306,0.79528,2513.7,2513.6,2.18259]
[1749921698908,0.79527,2513.8,2513.7,0.79528]
[1749921699108,0.79526,2513.8,2513.7,0.79526]
[1749921699506,0.79527,2513.8,2513.7,0.79527]
[1749921699707,0.79527,2513.8,2513.7,0.683]
[1749921701017,0.79527,2513.8,2513.7,1.47828]
[1749921701513,0.79527,2513.8,2513.7,0.683]
[1749921702115,0.79527,2513.8,2513.7,1.47828]
[1749921702417,0.79527,2513.8,2513.7,0.683]
[1749921703114,0.79527,2513.8,2513.7,1.47828]
[1749921704414,0.79531,2513.6,2513.5,3.2078]
[1749921704618,0.79531,2513.6,2513.2,0.6776]
[1749921704619,0.79541,2513.3,2513.2,0.6776]
[1749921707414,3.2078,2513.6,2513.2,0.6776]
[1749921707614,3.2078,2513.6,2513.2,1.47302]
[1749921707817,0.79541,2513.4,2513.3,0.79541]
[1749921708020,0.79541,2513.3,2513.2,1.47301]
[1749921708207,0.79539,2513.4,2513.3,0.7954]
[1749921709215,0.79536,2513.5,2513.4,0.79536]
[1749921709515,5.19593,2513.8,2513.2,0.6776]
[1749921709516,0.79529,2513.7,2513.6,0.79529]
[1749921709912,3.2078,2513.8,2513.3,6.745]
[1749921710107,3.2078,2513.8,2513.7,0.79528]
[1749921711319,0.79522,2513.9,2513.8,0.79525]
[1749921711512,0.80118467,2514.0,2513.9,0.79522]
[1749921711711,0.79524,2513.9,2513.8,0.79523]
[1749921712118,0.79524,2513.9,2513.5,6.56004]
[1749921712119,0.00597467,2514.0,2513.9,0.79522]
[1749921712717,3.2078,2514.5,2514.4,0.79506]
[1749921712917,0.79507,2514.4,2514.3,0.79507]
[1749921713219,3.2078,2514.5,2514.4,0.79506]
[1749921713220,4.00285,2514.5,2514.4,0.79506]
[1749921713406,3.2078,2514.5,2514.4,0.79506]
[1749921713714,0.79502,2514.6,2514.2,6.744]
[1749921713715,0.1637007,2514.7,2514.6,0.795]
[1749921714509,0.1637007,2514.7,2514.2,1.19585752]
[1749921714707,0.79509,2514.3,2514.2,0.00597467]
[1749921715419,0.79501,2514.6,2514.5,0.79502]
[1749921715827,0.9586807,2514.7,2514.6,0.795]
[1749921716219,0.1637007,2514.7,2514.6,0.795]
[1749921716426,0.1637007,2514.7,2514.4,7.53905]
[1749921716620,0.1637007,2514.7,2514.3,0.79507]
[1749921716820,0.79506,2514.4,2514.3,7.53907]
[1749921717020,0.79505,2514.5,2514.4,0.79505]
[1749921717321,1.4364007,2514.7,2514.3,6.744]
[1749921717520,0.1637007,2514.7,2514.3,6.744]
[1749921717711,0.79502,2514.6,2514.5,0.79503]
[1749921718624,0.79505,2514.5,2514.4,0.79505]
[1749921718825,0.79509,2514.3,2514.2,7.54408467]
[1749921719220,0.79509,2514.3,2514.2,6.74897467]
[1749921719423,0.79507,2514.4,2514.3,0.79507]
[1749921719723,0.79505,2514.5,2514.4,0.79505]
[1749921721926,0.79502,2514.6,2514.5,0.79501]
[1749921722224,0.79506,2514.5,2514.4,0.79504]
[1749921723725,0.79506,2514.4,2514.3,0.79508]
[1749921723927,0.79506,2514.4,2514.3,1.44418]
[1749921725028,1.25,2514.6,2514.2,1.19585752]
[1749921725029,0.79509,2514.3,2514.2,1.19585752]
[1749921725322,2.04509,2514.3,2514.2,0.00597467]
[1749921727328,0.06809268,2514.5,2514.2,0.00597467]
[1749921727625,0.06809268,2514.5,2514.4,0.79506]
[1749921728327,0.06809268,2514.5,2514.4,2.84956]
[1749921730430,0.06809268,2514.5,2514.4,3.18591385]
[1749921730732,0.06809268,2514.5,2514.4,4.37578523]
[1749921731028,0.06809268,2514.5,2514.4,3.18590267]
[1749921731225,0.06809268,2514.5,2514.4,4.36904829]
[1749921731528,0.06809268,2514.5,2514.4,4.36905006]
[1749921731723,0.06809268,2514.5,2514.4,4.36904999]
[1749921731926,0.1637007,2514.7,2514.6,0.795]
[1749921732233,0.1637007,2514.7,2514.6,1.13128554]
[1749921732431,0.1637007,2514.7,2514.6,2.31426326]
[1749921732632,0.1637007,2514.7,2514.6,3.60373038]
[1749921732828,0.1637007,2514.7,2514.6,3.60374498]
[1749921733028,3.2078,2515.2,2515.0,0.79485]
[1749921733234,4.00261,2515.2,2515.1,1.46564]
[1749921733437,3.2078,2515.5,2515.1,0.6708]
[1749921733627,0.79478,2515.3,2515.2,0.6715]
[1749921734029,3.2117831,2515.5,2515.2,0.6715]
[1749921734334,0.79478,2515.3,2515.2,0.6715]
[1749921734529,0.79478,2515.3,2515.2,1.46631]
[1749921735032,0.79478,2515.3,2515.2,0.6715]
[1749921735734,0.79478,2515.3,2515.2,1.46631]
[1749921736233,0.79478,2515.3,2515.2,0.6715]
[1749921736739,0.0039831,2515.5,2515.4,0.79474]
[1749921736924,0.40106856,2515.9,2515.4,3.169455]
[1749921737124,3.2078,2516.3,2515.5,7.91588923]
[1749921737324,0.7946,2515.9,2515.7,0.79464]
[1749921737529,0.7946,2515.9,2515.7,0.79463]
[1749921737827,0.7946,2515.9,2515.8,0.79462]
[1749921738029,0.79457,2516.0,2515.8,0.7946]
[1749921738537,0.79454,2516.1,2515.6,0.00596267]
[1749921738931,0.79454,2516.1,2515.9,0.79457]
[1749921739438,0.86264268,2516.0,2515.9,0.79457]
[1749921739637,0.86264268,2516.0,2515.6,1.18749206]
[1749921739837,0.06809268,2516.0,2515.9,0.79459]
[1749921740234,0.11143924,2516.0,2515.9,0.79459]
[1749921740539,0.7946,2515.9,2515.7,0.6568]
[1749921740728,0.90601924,2516.0,2515.8,0.79461]
[1749921741135,0.04334656,2515.9,2515.8,0.79461]
[1749921741538,0.83794656,2515.9,2515.7,0.6568]
[1749921741743,0.04334656,2515.9,2515.8,0.79462]
[1749921742236,0.06809268,2516.0,2515.9,0.73091024]
[1749921742635,0.06809268,2516.0,2515.9,2.02541024]
[1749921743436,0.06809268,2516.0,2515.9,0.73091024]
[1749921743644,0.86266268,2516.0,2515.9,0.79459]
[1749921743838,0.06809268,2516.0,2515.9,0.79459]
[1749921744435,0.86267268,2516.0,2515.8,1.43639]
[1749921744636,0.86267268,2516.0,2515.9,0.79459]
[1749921744844,0.06809268,2516.0,2515.9,0.79459]
[1749921745043,0.86264268,2516.0,2515.9,0.79459]
[1749921745237,0.79462,2515.8,2515.7,0.6568]
[1749921746940,0.79465,2515.7,2515.6,0.00596267]
[1749921747141,5.36595,2515.7,2515.6,0.00596267]
[1749921748644,5.38181198,2515.7,2515.6,0.00596267]
[1749921749046,5.39767403,2515.7,2515.6,0.00596267]
[1749921750440,13.57633403,2515.7,2515.0,0.6297]
[1749921750650,13.57633403,2515.7,2514.7,1.58861868]
[1749921750651,1.98714,2515.1,2514.7,6.731]
[1749921750846,0.79493,2514.8,2514.7,0.6262]
[1749921751348,4.5939,2515.0,2514.2,4.38815891]
[1749921751651,3.25931649,2514.6,2514.5,0.80099267]
[1749921751840,0.84651649,2514.6,2514.5,0.00596267]
[1749921752646,0.79518,2514.1,2513.9,0.79521]
[1749921752850,3.2078,2514.4,2513.9,0.79521]
[1749921753051,0.79522,2513.9,2513.7,10.21646]
[1749921753253,0.79524,2513.9,2513.7,8.83047]
[1749921753466,0.79525,2513.8,2513.7,8.0352]
[1749921753870,0.84676649,2513.8,2513.7,8.83048]
[1749921754265,0.84676649,2513.8,2513.7,8.0352]
[1749921754460,0.84676649,2513.8,2513.7,1.3042]
[1749921755365,0.84676649,2513.8,2513.5,0.00596267]
[1749921755366,0.79531,2513.6,2513.5,0.00596267]
[1749921755674,0.79529,2513.7,2513.5,0.00596267]
[1749921755965,0.05151649,2513.6,2513.5,0.00596267]
[1749921756165,0.05151649,2513.6,2513.5,0.80130267]
[1749921756565,0.84682649,2513.6,2513.5,0.00596267]
[1749921756768,2.20292649,2513.6,2513.5,0.00596267]
[1749921757067,0.79544,2513.2,2513.1,0.6826]
[1749921757371,0.79552,2513.0,2512.8,5.92135]
[1749921757671,0.08424639,2513.2,2512.8,5.1258]
[1749921757863,0.79548,2513.1,2512.9,0.79551]
[1749921758058,0.79548,2513.1,2512.9,2.08141]
[1749921758268,0.7955,2513.0,2512.9,1.2859]
[1749921758563,0.79553,2512.9,2512.8,0.6379]
[1749921758760,0.79557,2512.8,2512.7,0.68856267]
[1749921759564,0.10061134,2512.9,2512.7,0.68856267]
[1749921759767,0.10061134,2512.8,2512.7,1.48415267]
[1749921759965,0.79552,2513.0,2512.7,1.48415267]
[1749921760164,0.10561155,2512.8,2512.7,1.48415267]
[1749921760365,0.00596267,2513.3,2513.2,0.79544]
[1749921761169,0.00596267,2513.3,2513.2,2.09984]
[1749921761869,0.00596267,2513.3,2513.2,1.3044]
[1749921762071,0.80137267,2513.3,2513.2,2.09984]
[1749921762260,0.00596267,2513.3,2513.2,2.09984]
[1749921762461,0.80137267,2513.3,2513.2,2.09984]
[1749921762662,0.80137267,2513.3,2513.2,0.79544]
[1749921762861,0.00596267,2513.3,2513.2,0.79544]
[1749921763471,0.00596267,2513.3,2513.2,1.42054]
[1749921763667,0.00596267,2513.3,2513.2,0.79544]
[1749921764669,0.00596267,2513.3,2513.2,4.00324]
[1749921765170,0.00596267,2513.3,2513.2,5.29754]
[1749921766163,0.03534015,2513.3,2513.2,5.29754]
[1749921767073,0.06005773,2513.3,2513.2,5.29754]
[1749921767270,0.79529,2513.7,2513.6,0.79531]
[1749921768166,0.79527,2513.8,2513.7,0.79527]
[1749921768471,0.79532,2513.6,2513.5,0.79532]
[1749921768670,0.06809268,2513.9,2513.3,1.2777]
[1749921769070,0.79531,2513.7,2513.6,0.7953]
[1749921770376,0.79527,2513.8,2513.7,0.79527]
[1749921770763,0.86333268,2513.9,2513.8,0.79525]
[1749921772471,0.06809268,2513.9,2513.8,0.79525]
[1749921772674,0.06809268,2513.9,2513.8,4.00305]
[1749921775376,0.86331268,2513.9,2513.8,3.2078]
[1749921775582,0.79525,2513.8,2513.7,1.3274]
[1749921775780,0.06809268,2513.9,2513.6,0.6684]
[1749921775781,0.79528,2513.7,2513.6,0.6684]
[1749921776082,0.79528,2513.7,2513.6,1.46371]
[1749921776274,0.79526,2513.8,2513.7,0.79526]
[1749921776474,0.79526,2513.8,2513.7,2.08666]
[1749921776978,0.86333268,2513.9,2513.8,0.79525]
[1749921777179,0.06809268,2513.9,2513.8,0.79525]
[1749921779382,0.86331268,2513.9,2513.8,0.79525]
[1749921780082,0.79525,2513.8,2513.7,2.08667]
[1749921780583,0.86333268,2513.9,2513.8,0.79525]
[1749921780783,0.79525,2513.8,2513.7,2.08665]
[1749921780985,0.79528,2513.7,2513.6,0.6684]
[1749921781281,0.79528,2513.7,2513.6,8.19271]
[1749921781481,0.79528,2513.7,2513.6,7.3974]
[1749921781681,0.79528,2513.7,2513.6,0.6684]
[1749921782483,0.79528,2513.7,2513.6,1.46371]
[1749921782679,0.79526,2513.8,2513.7,0.79525]
[1749921782879,6.69133268,2513.9,2513.8,0.79525]
[1749921783583,0.79525,2513.8,2513.7,2.12496]
[1749921783883,0.79528,2513.7,2513.6,1.46369]
[1749921784180,5.89609268,2513.9,2513.8,0.79525]
[1749921784483,0.06809268,2513.9,2513.8,7.52425]
[1749921784680,0.06809268,2513.9,2513.8,8.87095]
[1749921785078,0.06809268,2513.9,2513.8,9.20729015]
[1749921785382,0.06809268,2513.9,2513.8,9.20729965]
[1749921785580,0.06809268,2513.9,2513.8,8.87095]
[1749921785783,0.06809268,2513.9,2513.8,9.20729969]
[1749921786085,0.06809268,2513.9,2513.8,0.33634969]
[1749921786287,0.79528,2513.7,2513.6,7.3974]
[1749921786678,0.79528,2513.7,2513.6,7.73376716]
[1749921786875,0.79528,2513.7,2513.6,0.6684]
[1749921787185,0.79528,2513.7,2513.6,2.64977583]
[1749921787385,0.79527,2513.8,2513.7,0.79525]
[1749921788186,0.79528,2513.7,2513.6,2.64975583]
[1749921788783,0.06809268,2513.9,2513.8,0.79525]
[1749921788986,0.06809268,2513.9,2513.8,12.64253898]
[1749921789186,0.06809268,2513.9,2513.8,11.06142753]
[1749921789382,0.06809268,2513.9,2513.8,14.69006311]
[1749921789586,0.06809268,2513.9,2513.8,14.69007086]
[1749921789890,0.06809268,2513.9,2513.8,13.43421846]
[1749921790078,0.06809268,2513.9,2513.8,10.2264383]
[1749921790278,0.06809268,2513.9,2513.8,7.85480387]
[1749921790680,0.86331268,2513.9,2513.8,1.1328236]
[1749921790895,0.86331268,2513.9,2513.8,9.43785286]
[1749921791186,0.86331268,2513.9,2513.8,9.43786284]
[1749921791380,0.86331268,2513.9,2513.8,9.4378616]
[1749921791580,0.86331268,2513.9,2513.8,2.7158616]
[1749921791788,0.86331268,2513.9,2513.8,8.6426116]
[1749921791989,0.86331268,2513.9,2513.8,9.4378616]
[1749921792281,0.86331268,2513.9,2513.8,9.10025959]
[1749921792682,0.86331268,2513.9,2513.8,8.30500959]
[1749921792884,0.86331268,2513.9,2513.8,9.10025959]
[1749921793582,0.06809268,2513.9,2513.8,13.09669403]
[1749921793988,0.06809268,2513.9,2513.8,10.72505]
[1749921794391,0.00596267,2514.0,2513.9,0.79522]
[1749921794688,3.2078,2514.4,2514.3,0.79509]
[1749921794984,4.00286,2514.4,2514.3,2.71543516]
[1749921795189,4.00286,2514.4,2514.3,2.71499469]
[1749921795486,0.79506,2514.4,2514.3,2.37784699]
[1749921796290,0.79506,2514.4,2514.3,1.13213336]
[1749921796585,0.79506,2514.4,2514.3,0.33679676]
[1749921796783,5.0,2514.4,2514.1,0.00596267]
[1749921796994,4.00292,2514.2,2514.1,0.00596267]
[1749921797484,5.26802,2514.2,2514.1,0.00596267]
[1749921797988,0.79512,2514.2,2514.1,0.80111267]
[1749921798392,0.79512,2514.2,2514.1,0.00596267]
[1749921799090,0.79512,2514.2,2514.1,1.192099]
[1749921799291,0.79512,2514.2,2514.1,0.00596267]
[1749921800294,0.86321268,2514.2,2514.1,0.00596267]
[1749921801394,2.20121268,2514.2,2514.1,0.00596267]
[1749921810103,1.98792,2514.1,2513.6,1.18613633]
[1749921810298,3.2078,2513.7,2513.6,0.79531]
[1749921810598,0.79519,2514.0,2513.9,0.79522]
[1749921810799,0.06809268,2514.2,2513.7,1.18805834]
[1749921811100,0.79518,2514.1,2514.0,0.79518]
[1749921811398,0.79518,2514.1,2514.0,1.98323834]
[1749921812599,0.79515,2514.1,2514.0,1.98323834]
[1749921812901,0.79515,2514.1,2514.0,1.18805834]
[1749921813401,0.79515,2514.1,2514.0,1.98324834]
[1749921813805,0.06809268,2514.2,2514.1,0.79515]
[1749921814001,0.86321268,2514.2,2514.1,0.79515]
[1749921814194,0.06809268,2514.2,2514.1,1.98320834]
[1749921814396,0.06809268,2514.2,2514.1,0.79515]
[1749921814693,0.79512,2514.2,2514.1,1.18805834]
[1749921814898,0.79515,2514.1,2514.0,1.98320834]
[1749921815397,0.79515,2514.1,2514.0,0.79515]
[1749921815597,0.86324268,2514.1,2514.0,0.79515]
[1749921815799,0.06809268,2514.1,2514.0,0.79515]
[1749921816004,0.06809268,2514.1,2514.0,2.37790699]
[1749921816605,0.86324268,2514.1,2514.0,0.33732403]
[1749921816906,0.79519,2514.0,2513.9,2.37794699]
[1749921817302,0.79519,2514.0,2513.9,1.92005558]
[1749921817605,0.79519,2514.0,2513.9,1.92008649]
[1749921817808,0.79522,2513.9,2513.8,2.26275699]
[1749921818007,0.79522,2513.9,2513.8,2.60010615]
[1749921818203,0.79522,2513.9,2513.8,3.05800699]
[1749921818411,0.79522,2513.9,2513.8,3.39536055]
[1749921818610,0.79522,2513.9,2513.8,2.26275699]
[1749921819413,0.79522,2513.9,2513.8,2.60011023]
[1749921819602,0.79522,2513.9,2513.8,2.60011057]
[1749921819910,0.06809268,2514.1,2513.8,2.60010591]
[1749921820205,0.86327268,2514.1,2514.0,1.18879122]
[1749921820706,0.06809268,2514.1,2514.0,3.16932549]
[1749921820902,0.06809268,2514.1,2514.0,4.46982549]
[1749921821110,0.06809268,2514.1,2514.0,2.43287936]
[1749921821298,0.06809268,2514.1,2514.0,2.09569]
[1749921821503,0.06809268,2514.1,2514.0,2.4328876]
[1749921821810,0.06809268,2514.1,2514.0,4.47199813]
[1749921822008,0.06809268,2514.1,2514.0,2.4329094]
[1749921822204,0.06809268,2514.1,2514.0,2.09569]
[1749921822512,0.00592269,2514.6,2514.5,0.79503]
[1749921822903,0.80092269,2514.6,2514.5,0.79503]
[1749921823099,0.00592269,2514.6,2514.5,0.79503]
[1749921823309,0.00592269,2514.6,2514.5,4.03881537]
[1749921823604,0.00592269,2514.6,2514.5,2.45489154]
[1749921823804,0.00592269,2514.6,2514.5,2.45485552]
[1749921824006,0.00592269,2514.6,2514.5,3.10195642]
[1749921824308,0.00592269,2514.6,2514.5,4.3474312]
[1749921829315,0.00592269,2514.6,2514.5,2.76503]
[1749921829816,0.86901537,2514.6,2514.5,2.76503]
[1749921830016,0.07401537,2514.6,2514.5,3.94991565]
[1749921830816,0.86901537,2514.6,2514.5,3.94991565]
[1749921831012,0.86901537,2514.6,2514.5,1.83198565]
[1749921831217,0.86901537,2514.6,2514.5,0.6471]
[1749921832125,2.17981537,2514.6,2514.5,0.6471]
[1749921832814,0.86901537,2514.6,2514.5,0.6471]
[1749921837013,2.19211537,2514.6,2514.5,0.6471]
[1749921841922,0.86901537,2514.6,2514.5,0.6471]
[1749921843422,2.20771537,2514.6,2514.5,0.6471]
[1749921843926,0.79509,2514.3,2514.2,1.18488565]
[1749921844130,0.79509,2514.3,2514.2,1.87598565]
[1749921844622,0.79509,2514.3,2514.2,0.6911]
[1749921845223,5.19548,2514.4,2514.0,1.18488565]
[1749921845416,0.79519,2514.0,2513.9,1.18488565]
[1749921845618,0.79522,2513.9,2513.8,4.69155]
[1749921846418,1.2488,2514.2,2513.9,0.79519]
[1749921846619,0.79519,2514.0,2513.9,0.79519]
[1749921847322,1.2488,2514.2,2513.8,3.8963]
[1749921847526,0.79522,2513.9,2513.8,3.8963]
[1749921848326,0.79522,2513.9,2513.8,4.69155]
[1749921848921,0.79522,2514.0,2513.9,0.7952]
[1749921849130,0.79507,2514.4,2514.3,0.79509]
[1749921849330,0.79505,2514.5,2514.4,0.79505]
[1749921849521,0.07401537,2514.6,2514.2,0.6634]
[1749921849721,3.2078,2514.5,2514.3,0.6903]
[1749921849917,0.79506,2514.4,2514.3,0.6903]
[1749921860534,0.79509,2514.3,2514.2,0.6634]
[1749921863836,0.79509,2514.3,2514.2,2.0134]
[1749921865336,0.79509,2514.3,2514.2,0.6634]
[1749921865732,0.79512,2514.2,2514.1,0.6319]
[1749921866831,5.828,2514.3,2514.2,0.79512]
[1749921867041,5.828,2514.3,2514.2,2.18022]
[1749921867539,5.828,2514.3,2514.2,3.7626212]
[1749921867742,0.00592269,2514.6,2514.2,6.3851]
[1749921868042,0.79492,2514.9,2514.5,3.2078]
[1749921868235,0.79492,2514.9,2514.8,0.79493]
[1749921869644,0.79492,2514.9,2514.6,9.66747408]
[1749921869844,0.79492,2514.9,2514.8,0.79493]
[1749921870144,0.79493,2514.8,2514.7,2.16244]
[1749921870334,0.79492,2514.9,2514.8,0.79493]
[1749921870941,0.79492,2514.9,2514.8,1.42843]
[1749921871132,0.79492,2514.9,2514.8,2.08473]
[1749921871541,0.79492,2514.9,2514.8,1.2898]
[1749921872443,0.79492,2514.9,2514.8,2.6573]
[1749921872838,0.79492,2514.9,2514.8,3.45223]
[1749921873237,3.2078,2515.0,2514.8,2.6573]
[1749921873545,0.7949,2514.9,2514.8,3.45222]
[1749921874246,0.7949,2514.9,2514.8,2.6573]
[1749921874546,0.86299268,2514.9,2514.8,2.6573]
[1749921875041,0.06809268,2514.9,2514.8,3.45223]
[1749921877250,0.00596267,2515.1,2515.0,0.79487]
[1749921877449,0.00596267,2515.1,2515.0,7.48287]
[1749921878051,0.00596267,2515.1,2515.0,8.82447]
[1749921878651,0.79474,2515.4,2515.3,0.79478]
[1749921879643,0.79474,2515.4,2515.3,1.43628]
[1749921880048,3.2078,2515.7,2515.3,0.6415]
[1749921880255,0.79474,2515.4,2515.3,0.6415]
[1749921880646,0.79481,2515.2,2515.1,0.00596267]
[1749921883749,1.98719,2515.0,2514.5,0.79501]
[1749921883954,1.9871,2515.1,2514.4,7.361]
[1749921883955,3.2078,2514.9,2514.4,7.361]
[1749921884154,3.2078,2514.9,2514.8,0.79493]
[1749921884353,3.2078,2514.9,2514.6,0.79497]
[1749921884553,3.27589268,2514.9,2514.6,0.79497]
[1749921884754,3.27589268,2514.9,2514.5,1.25446267]
[1749921884952,4.07080268,2514.9,2514.8,0.79493]
[1749921885154,0.79495,2514.8,2514.7,0.79495]
[1749921885357,0.79494,2514.8,2514.7,0.79495]
[1749921886454,0.79497,2514.7,2514.6,1.46928]
[1749921887253,0.79497,2514.7,2514.6,7.3623]
[1749921887653,0.79497,2514.7,2514.6,8.1573]
[1749921888052,0.79497,2514.7,2514.6,0.6743]
[1749921888259,0.795,2514.6,2514.5,0.00596267]
[1749921890660,0.86309268,2514.6,2514.5,0.00596267]
[1749921892166,0.06809268,2514.6,2514.5,0.80099267]
[1749921892455,0.06809268,2514.6,2514.5,5.35299267]
[1749921892858,0.86309268,2514.6,2514.5,5.35299267]
[1749921893053,0.86309268,2514.6,2514.5,2.14519267]
[1749921893258,4.07089268,2514.6,2514.5,0.00596267]
[1749921893654,4.07089268,2514.6,2514.5,0.80099267]
[1749921895354,4.07089268,2514.6,2514.5,0.00596267]
[1749921909470,3.27589268,2514.6,2514.5,0.80099267]
[1749921909678,0.06809268,2514.6,2514.5,0.80099267]
[1749921910280,0.06809268,2514.6,2514.5,2.83449267]
[1749921910968,0.06809268,2514.6,2514.5,34.47549267]
[1749921911671,0.06809268,2514.6,2514.5,36.85137759]
[1749921911979,0.00596267,2515.0,2514.9,0.7949]
[1749921912478,0.00596267,2515.0,2514.9,7.4709]
[1749921912680,0.00596267,2515.0,2514.9,8.7494]
[1749921913072,0.80083267,2515.0,2514.9,33.7094]
[1749921913585,0.00596267,2515.0,2514.9,33.7094]
[1749921914683,0.00596267,2515.0,2514.9,2.0734]
[1749921914878,0.00596267,2515.0,2514.9,33.7094]
[1749921915084,0.00596267,2515.0,2514.9,34.3922]
[1749921918787,0.00596267,2515.0,2514.9,34.3862]
[1749921920179,0.07405535,2515.0,2514.9,34.3862]
[1749921922285,0.07405535,2515.0,2514.9,34.3812]
[1749921925295,0.07405535,2515.0,2514.9,39.3812]
[1749921925587,3.2078,2515.7,2515.2,1.98699]
[1749921925786,3.2078,2515.7,2515.6,0.79468]
[1749921925992,3.2078,2515.7,2515.6,25.74268]
[1749921927491,0.79461,2515.9,2515.8,0.79462]
[1749921927687,0.79461,2515.9,2515.8,25.74162]
[1749921928082,0.79457,2516.0,2515.9,0.79457]
[1749921928493,0.79462,2515.8,2515.7,0.6254]
[1749921928687,0.79462,2515.8,2515.7,25.5694]
[1749921929700,0.79462,2515.8,2515.7,26.36405]
[1749921930496,0.79461,2515.9,2515.7,26.36405]
[1749921930698,0.79462,2515.8,2515.7,27.63985]
[1749921930992,0.7946,2515.9,2515.7,27.63985]
[1749921931195,0.79457,2516.0,2515.8,0.79461]
[1749921931497,3.2078,2516.1,2515.8,0.79461]
[1749921931693,0.79462,2515.8,2515.7,27.63983]
[1749921932187,3.2078,2516.1,2515.7,1.9012]
[1749921932390,0.79462,2515.8,2515.7,0.6254]
[1749921932895,0.79462,2515.8,2515.7,32.2374]
[1749921935294,0.86271268,2515.8,2515.7,33.03205]
[1749921935596,0.86271268,2515.8,2515.7,32.2374]
[1749921936487,0.86271268,2515.8,2515.7,33.03205]
[1749921937392,0.86271268,2515.8,2515.7,32.2374]